bitfinex/quotes_BTCUSD_20250723
["timestamp","ask_amount","ask_price","bid_price","bid_amount"]
[1753253055992,0.61498172,118500.0,118490.0,0.30287061]
[1753253056511,0.29455367,118500.0,118490.0,0.30287061]
[1753253056724,0.61498172,118500.0,118490.0,0.30287061]
[1753253057570,0.61498172,118500.0,118490.0,0.13408]
[1753253057793,0.61809172,118500.0,118490.0,0.13408]
[1753253058665,0.61498172,118500.0,118490.0,0.30287061]
[1753253060338,0.61498172,118500.0,118490.0,0.17219061]
[1753253060489,0.61498172,118500.0,118490.0,0.30279061]
[1753253061273,0.61809172,118500.0,118490.0,0.30279061]
[1753253064112,0.61809172,118500.0,118490.0,0.17219061]
[1753253064361,0.61809172,118500.0,118490.0,0.30275061]
[1753253064362,0.29766367,118500.0,118490.0,0.30275061]
[1753253064566,0.61809172,118500.0,118490.0,0.30275061]
[1753253067427,0.61809172,118500.0,118490.0,0.17219061]
[1753253067663,0.61809172,118500.0,118490.0,0.30275061]
[1753253070636,0.29766367,118500.0,118490.0,0.30275061]
[1753253070971,0.61809172,118500.0,118490.0,0.30275061]
[1753253072325,0.61809172,118500.0,118490.0,0.17219061]
[1753253072555,0.61809172,118500.0,118490.0,0.30271061]
[1753253077432,0.29766367,118500.0,118490.0,0.30271061]
[1753253077681,0.61809172,118500.0,118490.0,0.30271061]
[1753253078176,0.35540411,118500.0,118490.0,0.0014]
[1753253078407,0.99626021,118500.0,118490.0,0.0014]
[1753253079131,1.12746021,118500.0,118490.0,0.0014]
[1753253079360,1.14490923,118500.0,118490.0,0.0014]
[1753253080044,1.48490923,118500.0,118490.0,0.0014]
[1753253080721,1.42226879,118500.0,118490.0,0.0014]
[1753253080978,1.42126879,118500.0,118490.0,0.0014]
[1753253081204,1.41926879,118500.0,118490.0,0.0004]
[1753253081692,1.42326879,118500.0,118490.0,0.0014]
[1753253082429,1.42526879,118500.0,118490.0,0.0024]
[1753253083114,1.50974609,118500.0,118490.0,0.0024]
[1753253098925,0.18568484,118480.0,118470.0,0.0004]
[1753253099176,0.28812214,118480.0,118470.0,0.0004]
[1753253099395,1.01171019,118480.0,118470.0,0.0004]
[1753253099818,0.99591019,118480.0,118470.0,0.0004]
[1753253100250,0.69126513,118480.0,118470.0,0.0014]
[1753253100499,1.01169318,118480.0,118470.0,0.0014]
[1753253100714,1.01269318,118480.0,118470.0,0.0024]
[1753253101365,1.14381318,118480.0,118470.0,0.0024]
[1753253101817,1.48024123,118480.0,118470.0,0.0024]
[1753253102045,1.16471853,118480.0,118470.0,0.0024]
[1753253102476,0.84429048,118480.0,118470.0,0.0024]
[1753253102724,0.82829048,118480.0,118470.0,0.0024]
[1753253103746,0.82833048,118480.0,118470.0,0.0024]
[1753253104186,0.74385318,118480.0,118470.0,0.0024]
[1753253104414,0.74389318,118480.0,118470.0,0.0024]
[1753253104626,0.76923118,118480.0,118470.0,0.0024]
[1753253108395,0.78533118,118480.0,118470.0,0.0024]
[1753253109345,0.46490313,118480.0,118470.0,0.0024]
[1753253109583,0.78525118,118480.0,118470.0,0.0024]
[1753253110250,0.83226152,118480.0,118470.0,0.0024]
[1753253110992,0.70118152,118480.0,118470.0,0.0024]
[1753253111213,0.83226152,118480.0,118470.0,0.0024]
[1753253111429,0.81616152,118480.0,118470.0,0.0024]
[1753253113253,0.83236152,118480.0,118470.0,0.0024]
[1753253113458,0.51193347,118480.0,118470.0,0.0024]
[1753253113659,0.83236152,118480.0,118470.0,0.0024]
[1753253114225,0.68508152,118480.0,118470.0,0.0024]
[1753253114499,0.68508152,118480.0,118430.0,0.0014109]
[1753253114500,0.56765384,118440.0,118430.0,0.0014109]
[1753253114741,0.69465652,118440.0,118430.0,0.0014109]
[1753253114965,0.60810206,118440.0,118430.0,0.0065209]
[1753253115176,0.60810206,118440.0,118430.0,0.1691609]
[1753253115177,0.28262612,118440.0,118430.0,0.1691609]
[1753253115383,0.92348222,118440.0,118430.0,0.0034109]
[1753253115600,0.92348222,118440.0,118430.0,0.0014109]
[1753253115601,0.29622212,118440.0,118430.0,0.0014109]
[1753253115821,0.61665017,118440.0,118430.0,0.0014109]
[1753253116020,0.93716118,118440.0,118430.0,0.0014109]
[1753253116439,0.93816118,118440.0,118430.0,0.0024109]
[1753253116649,0.61457313,118440.0,118430.0,0.17328702]
[1753253116892,0.13156551,118440.0,118430.0,0.20799702]
[1753253117103,0.30042781,118440.0,118430.0,0.22488441]
[1753253117321,0.29215181,118440.0,118430.0,0.23332785]
[1753253117525,0.28370908,118440.0,118430.0,0.35954895]
[1753253117733,0.28370908,118440.0,118430.0,0.49222895]
[1753253117934,0.28370908,118440.0,118430.0,0.35954895]
[1753253118147,0.28370908,118440.0,118430.0,0.0391209]
[1753253118357,0.28370908,118440.0,118430.0,0.1718009]
[1753253118581,0.28370908,118440.0,118430.0,0.1718409]
[1753253119171,0.28370908,118440.0,118430.0,0.34071702]
[1753253119389,0.28370908,118440.0,118430.0,0.34916068]
[1753253120162,0.28370908,118440.0,118430.0,0.34916075]
[1753253120379,0.28370908,118440.0,118430.0,0.35760441]
[1753253121030,0.28370908,118440.0,118430.0,0.35860441]
[1753253121031,0.28570908,118440.0,118430.0,0.35860441]
[1753253121238,0.28570908,118440.0,118430.0,0.367048]
[1753253121461,0.28570908,118440.0,118430.0,0.36704785]
[1753253121687,0.10840426,118440.0,118430.0,0.37549115]
[1753253121915,0.08756026,118440.0,118430.0,0.66060099]
[1753253122619,0.11288867,118440.0,118430.0,0.20899702]
[1753253122839,0.56057779,118440.0,118430.0,0.1381309]
[1753253123071,0.27862795,118440.0,118430.0,0.0054109]
[1753253123330,0.28175054,118440.0,118430.0,0.33544771]
[1753253123527,0.28175054,118440.0,118430.0,0.32700434]
[1753253123673,0.28175054,118440.0,118430.0,0.19428434]
[1753253123874,0.28175104,118440.0,118430.0,0.0085209]
[1753253124118,0.27330824,118440.0,118430.0,0.0085209]
[1753253124519,0.27330824,118440.0,118430.0,0.31856082]
[1753253124753,0.27330824,118440.0,118430.0,0.32700455]
[1753253124954,0.27230824,118440.0,118430.0,0.32600455]
[1753253125363,0.26186522,118440.0,118430.0,0.0065209]
[1753253125568,0.26186522,118440.0,118430.0,0.1402009]
[1753253125915,0.26186522,118440.0,118430.0,0.30907702]
[1753253126142,0.26186522,118440.0,118430.0,0.31752082]
[1753253126536,0.25342213,118440.0,118430.0,0.1402009]
[1753253126982,0.25342213,118440.0,118430.0,0.1486447]
[1753253127202,0.25342213,118440.0,118430.0,0.1402009]
[1753253127557,0.25442213,118440.0,118430.0,0.1412009]
[1753253128006,0.25442213,118440.0,118430.0,0.32696455]
[1753253128817,0.25442213,118440.0,118430.0,0.1411209]
[1753253129250,0.25442213,118440.0,118430.0,0.1380109]
[1753253129637,0.25442213,118440.0,118430.0,0.0054109]
[1753253130072,0.25641213,118440.0,118430.0,0.0054109]
[1753253130279,0.25641213,118440.0,118430.0,0.1379309]
[1753253130957,0.25948213,118440.0,118430.0,0.1379309]
[1753253132652,0.25641213,118440.0,118430.0,0.1379309]
[1753253132843,0.25442213,118440.0,118430.0,0.1379309]
[1753253133295,0.25948213,118440.0,118430.0,0.0054109]
[1753253133504,0.25948213,118440.0,118430.0,0.1378509]
[1753253133722,0.25948213,118440.0,118430.0,0.1358509]
[1753253134806,0.25948213,118440.0,118430.0,0.1378509]
[1753253135034,0.25948213,118440.0,118430.0,0.33077068]
[1753253135035,0.26286522,118440.0,118430.0,0.33077068]
[1753253135293,0.08556026,118440.0,118430.0,0.22562427]
[1753253135513,0.08556026,118440.0,118430.0,0.65998093]
[1753253135707,0.09400271,118440.0,118430.0,0.65998093]
[1753253136180,0.10244523,118440.0,118430.0,0.65998093]
[1753253138141,0.08556026,118440.0,118430.0,0.65998093]
[1753253138297,0.09400271,118440.0,118430.0,0.65998093]
[1753253139171,0.1024453,118440.0,118430.0,0.66855215]
[1753253139409,0.1024453,118440.0,118430.0,0.65998093]
[1753253139786,0.10244523,118440.0,118430.0,0.65998093]
[1753253140179,0.11088789,118440.0,118430.0,0.65998093]
[1753253140509,0.10244523,118440.0,118430.0,0.65998093]
[1753253140850,0.10248523,118440.0,118430.0,0.65998093]
[1753253141560,0.09404271,118440.0,118430.0,0.65998093]
[1753253141951,0.11092824,118440.0,118430.0,0.65998093]
[1753253142098,0.10248537,118440.0,118430.0,0.65998093]
[1753253142333,0.1024853,118440.0,118430.0,0.65998093]
[1753253143765,0.1024853,118440.0,118430.0,0.66849548]
[1753253145336,0.11092803,118440.0,118430.0,0.65998093]
[1753253145560,0.11092796,118440.0,118430.0,0.65998093]
[1753253146285,0.11937076,118440.0,118430.0,0.65998093]
[1753253147669,0.12781371,118440.0,118430.0,0.65998093]
[1753253151790,0.11937076,118440.0,118430.0,0.65998093]
[1753253151791,0.12781363,118440.0,118430.0,0.65998093]
[1753253151991,0.11937083,118440.0,118430.0,0.65998093]
[1753253153606,0.11937083,118440.0,118430.0,0.52762093]
[1753253154062,0.11092796,118440.0,118430.0,0.65922093]
[1753253154303,0.11937076,118440.0,118430.0,0.65922093]
[1753253154561,0.12781363,118440.0,118430.0,0.65922093]
[1753253154794,0.12781413,118440.0,118430.0,0.65918093]
[1753253155259,0.11092831,118440.0,118430.0,0.65918093]
[1753253155856,0.10248551,118440.0,118430.0,0.65918093]
[1753253156279,0.11092831,118440.0,118430.0,0.65918093]
[1753253156480,0.11937118,118440.0,118430.0,0.65918093]
[1753253156785,0.11092831,118440.0,118430.0,0.65918093]
[1753253156966,0.10248551,118440.0,118430.0,0.65918093]
[1753253157207,0.11092831,118440.0,118430.0,0.69473314]
[1753253158316,0.08560026,118440.0,118430.0,1.01539519]
[1753253158606,0.08560026,118440.0,118430.0,0.69473314]
[1753253159882,0.08560026,118440.0,118430.0,0.37407109]
[1753253160127,0.08560026,118440.0,118430.0,0.69473314]
[1753253161327,0.08560026,118440.0,118430.0,0.65908609]
[1753253163409,0.00112296,118440.0,118430.0,0.65908609]
[1753253165320,0.00112296,118440.0,118430.0,0.37407109]
[1753253165528,0.00112296,118440.0,118430.0,0.65908609]
[1753253167083,0.00112296,118440.0,118430.0,1.28410109]
[1753253167549,0.00112296,118440.0,118430.0,1.15254109]
[1753253167767,0.00112296,118440.0,118430.0,1.30135011]
[1753253167998,0.00012296,118440.0,118430.0,1.29935011]
[1753253168207,0.00112296,118440.0,118430.0,1.30335011]
[1753253168339,0.00212296,118440.0,118430.0,1.30635011]
[1753253168553,0.00212296,118440.0,118430.0,0.87252609]
[1753253168765,0.00112296,118440.0,118430.0,0.86952609]
[1753253169116,0.00112296,118440.0,118430.0,1.00084609]
[1753253169341,0.00112296,118440.0,118430.0,1.00484609]
[1753253169546,0.00212296,118440.0,118430.0,1.00484609]
[1753253169747,0.00112296,118440.0,118430.0,1.00084609]
[1753253170126,0.00212296,118440.0,118430.0,1.00584609]
[1753253179904,0.00212296,118440.0,118430.0,1.00552609]
[1753253182929,0.00212296,118440.0,118430.0,1.00552609]
[1753253188632,0.14535846,118440.0,118430.0,0.18973075]
[1753253188853,0.14009594,118440.0,118430.0,0.33577778]
[1753253189094,0.31740033,118440.0,118430.0,0.34422108]
[1753253189294,0.15698148,118440.0,118430.0,0.34422108]
[1753253189887,0.15598148,118440.0,118430.0,0.33922108]
[1753253190088,0.15498148,118440.0,118430.0,0.20406108]
[1753253190321,0.13909551,118440.0,118430.0,0.33722108]
[1753253190555,0.14853838,118440.0,118430.0,0.33922108]
[1753253190843,0.15698133,118440.0,118430.0,0.33922108]
[1753253192268,0.16542435,118440.0,118430.0,0.33922108]
[1753253192916,0.15698133,118440.0,118430.0,0.33922108]
[1753253193319,0.14853838,118440.0,118430.0,0.33922108]
[1753253193563,0.15698133,118440.0,118430.0,0.33922108]
[1753253193774,0.11277278,118440.0,118430.0,0.62620608]
[1753253194008,0.00212296,118440.0,118430.0,1.00113608]
[1753253194241,0.00212296,118440.0,118430.0,1.3036001]
[1753253194462,1e-08,118440.0,118430.0,3.06312165]
[1753253194685,4e-05,118480.0,118470.0,0.53414111]
[1753253194899,0.08466528,118480.0,118470.0,0.96740611]
[1753253195332,0.08466528,118480.0,118470.0,0.97053611]
[1753253196656,0.10154462,118480.0,118470.0,0.95629611]
[1753253196871,0.1099845,118480.0,118470.0,0.95629611]
[1753253197074,0.1184246,118480.0,118470.0,0.95316611]
[1753253197275,0.1131145,118480.0,118470.0,0.95516611]
[1753253197480,0.12473452,118480.0,118470.0,0.95516611]
[1753253197687,0.14927469,118480.0,118470.0,0.52870066]
[1753253197895,0.33427955,118480.0,118470.0,0.67658163]
[1753253198308,0.32583995,118480.0,118470.0,0.66814118]
[1753253198517,0.32583995,118480.0,118470.0,0.96159663]
[1753253198518,0.14859492,118480.0,118470.0,0.96159663]
[1753253198732,0.1401549,118480.0,118470.0,0.96159663]
[1753253198943,0.32584002,118480.0,118470.0,0.83059663]
[1753253199153,0.32584002,118480.0,118470.0,0.96159663]
[1753253199490,0.14859492,118480.0,118470.0,0.67658163]
[1753253199703,0.13171502,118480.0,118470.0,0.67658163]
[1753253199889,0.1078549,118480.0,118470.0,0.67658163]
[1753253200093,0.1078549,118480.0,118470.0,0.67855163]
[1753253200295,0.11629492,118480.0,118470.0,0.67855163]
[1753253200507,0.1078549,118480.0,118470.0,0.67855163]
[1753253200968,0.11629485,118480.0,118470.0,0.67855163]
[1753253201181,0.11629485,118480.0,118470.0,0.67847163]
[1753253201546,0.12473495,118480.0,118470.0,0.67843163]
[1753253201887,0.12473495,118480.0,118470.0,0.96344663]
[1753253202101,0.12473487,118480.0,118470.0,0.96344663]
[1753253202257,0.13317497,118480.0,118470.0,0.96344663]
[1753253202461,0.13179485,118480.0,118470.0,0.96344663]
[1753253203469,0.1233549,118480.0,118470.0,0.96344663]
[1753253203677,0.13179492,118480.0,118470.0,0.96344663]
[1753253204271,0.1233549,118480.0,118470.0,0.96344663]
[1753253204486,0.13179485,118480.0,118470.0,0.96344663]
[1753253205102,0.14023495,118480.0,118470.0,0.96344663]
[1753253205454,0.13179485,118480.0,118470.0,0.96344663]
[1753253205998,0.14023495,118480.0,118470.0,0.96344663]
[1753253206359,0.14867512,118480.0,118470.0,0.96344663]
[1753253206611,0.31747998,118480.0,118470.0,0.83256663]
[1753253206843,0.32464024,118480.0,118470.0,0.95299618]
[1753253207237,0.32464024,118480.0,118470.0,0.66798118]
[1753253208031,0.32464024,118480.0,118470.0,0.95299618]
[1753253208660,0.32464024,118480.0,118470.0,0.67642163]
[1753253209635,0.13895511,118480.0,118470.0,0.67642163]
[1753253209999,0.14739521,118480.0,118470.0,0.67642163]
[1753253210408,0.13895511,118480.0,118470.0,0.67642163]
[1753253210618,0.14739521,118480.0,118470.0,0.67642163]
[1753253210999,0.13895511,118480.0,118470.0,0.67642163]
[1753253211232,0.14739521,118480.0,118470.0,0.54558163]
[1753253211437,0.14739521,118480.0,118470.0,0.67642163]
[1753253211771,0.13887324,118480.0,118470.0,0.67642163]
[1753253211975,0.12327324,118480.0,118470.0,0.96340663]
[1753253212187,0.12327296,118480.0,118470.0,0.96340663]
[1753253212394,0.12009296,118480.0,118470.0,0.83256663]
[1753253212590,0.12009296,118480.0,118470.0,0.96340663]
[1753253213040,0.12853298,118480.0,118470.0,0.96340663]
[1753253213250,0.14015308,118480.0,118470.0,0.96340663]
[1753253215457,0.19171298,118480.0,118470.0,0.96340663]
[1753253216014,0.36895794,118480.0,118470.0,0.96340663]
[1753253216342,0.36895794,118480.0,118470.0,0.95496618]
[1753253216577,0.37739818,118480.0,118470.0,0.95496618]
[1753253217218,0.39369818,118480.0,118470.0,0.95496618]
[1753253217616,0.39369818,118480.0,118470.0,0.66995118]
[1753253217839,0.22489332,118480.0,118470.0,0.67839163]
[1753253218092,0.39369818,118480.0,118470.0,0.67839163]
[1753253218939,0.39369818,118480.0,118470.0,0.66995118]
[1753253219211,0.19171298,118480.0,118470.0,0.67839163]
[1753253219398,0.19171298,118480.0,118470.0,0.96340663]
[1753253219815,0.18327296,118480.0,118470.0,0.96340663]
[1753253220039,0.16246289,118480.0,118470.0,0.96336663]
[1753253220244,0.17090291,118480.0,118470.0,0.68146163]
[1753253220448,0.17934301,118480.0,118470.0,0.96647663]
[1753253220662,0.14558341,118480.0,118470.0,0.83567663]
[1753253220875,0.15402322,118480.0,118470.0,0.96647663]
[1753253221047,0.1709027,118480.0,118470.0,0.96647663]
[1753253221452,0.16246282,118480.0,118470.0,0.96597663]
[1753253221655,0.14558341,118480.0,118470.0,0.98107663]
[1753253222002,0.08558341,118480.0,118470.0,0.99677663]
[1753253223148,0.09402308,118480.0,118470.0,0.99677663]
[1753253223951,0.10246282,118480.0,118470.0,0.98107663]
[1753253224176,0.1109027,118480.0,118470.0,0.96597663]
[1753253224563,0.1109027,118480.0,118470.0,0.68096163]
[1753253224773,0.1109027,118480.0,118470.0,0.96597663]
[1753253225358,0.10246282,118480.0,118470.0,0.96597663]
[1753253225586,0.1109027,118480.0,118470.0,0.96597663]
[1753253226239,0.1109027,118480.0,118470.0,0.68096163]
[1753253226449,0.1109027,118480.0,118470.0,0.96597663]
[1753253226820,0.10246282,118480.0,118470.0,0.96597663]
[1753253227441,0.08558341,118480.0,118470.0,0.96597663]
[1753253228608,0.09402301,118480.0,118470.0,0.96597663]
[1753253229421,0.09402301,118480.0,118470.0,0.96547663]
[1753253229830,0.08558341,118480.0,118470.0,0.96547663]
[1753253230363,0.10246282,118480.0,118470.0,0.96547663]
[1753253230594,0.09402301,118480.0,118470.0,0.96547663]
[1753253230773,0.10246275,118480.0,118470.0,0.96547663]
[1753253231368,0.09402301,118480.0,118470.0,0.96547663]
[1753253231927,0.10246275,118480.0,118470.0,0.96547663]
[1753253232457,0.11090263,118480.0,118470.0,0.96547663]
[1753253233478,0.10246275,118480.0,118470.0,0.96547663]
[1753253233783,0.11090263,118480.0,118470.0,0.96547663]
[1753253233988,0.09402301,118480.0,118470.0,0.96547663]
[1753253234284,0.08558341,118480.0,118470.0,0.96547663]
[1753253234524,0.09402301,118480.0,118470.0,0.96547663]
[1753253234868,0.08558341,118480.0,118470.0,0.96547663]
[1753253238128,0.00114798,118480.0,118470.0,0.99607663]
[1753253239693,0.00114798,118480.0,118470.0,1.28109163]
[1753253241692,0.00114798,118480.0,118470.0,1.28099163]
[1753253241896,0.00114798,118480.0,118470.0,0.71096163]
[1753253242152,0.00114798,118480.0,118470.0,0.99597663]
[1753253248063,0.00114798,118480.0,118470.0,1.01342565]
[1753253248280,0.00114798,118480.0,118470.0,1.97271995]
[1753253248661,0.00114798,118480.0,118470.0,1.72331895]
[1753253248843,0.00114798,118480.0,118470.0,1.43830395]
[1753253249197,0.00114798,118480.0,118470.0,1.15328895]
[1753253249417,0.00114798,118480.0,118470.0,1.72331895]
[1753253249846,0.00114798,118480.0,118470.0,1.72231895]
[1753253250255,0.00214798,118480.0,118470.0,1.44130395]
[1753253250601,0.00214798,118480.0,118470.0,1.17718365]
[1753253251016,0.00114798,118480.0,118470.0,1.17518365]
[1753253251622,0.00214798,118480.0,118470.0,1.17918365]
[1753253251758,0.00214798,118480.0,118470.0,1.00093663]
[1753253251960,0.00214798,118480.0,118470.0,0.96722663]
[1753253252199,0.01854798,118480.0,118470.0,0.96722663]
[1753253252653,0.02070798,118480.0,118470.0,0.83646663]
[1753253252855,0.02070798,118480.0,118470.0,0.68221163]
[1753253252856,0.03960798,118480.0,118470.0,0.68221163]
[1753253253127,0.03960798,118480.0,118470.0,0.96722663]
[1753253253534,0.02170798,118480.0,118470.0,0.95922663]
[1753253253973,0.02270798,118480.0,118470.0,0.96222663]
[1753253255035,0.02370798,118480.0,118470.0,0.96622663]
[1753253255295,0.04864765,118480.0,118470.0,0.96421663]
[1753253255516,0.04864758,118480.0,118470.0,0.96421663]
[1753253255946,0.14497774,118480.0,118470.0,0.96421663]
[1753253256177,0.15341776,118480.0,118470.0,0.5242597]
[1753253256326,0.16185786,118480.0,118470.0,0.67186096]
[1753253256960,0.16085786,118480.0,118470.0,0.66886096]
[1753253257417,0.16185786,118480.0,118470.0,0.67086096]
[1753253258030,0.16085786,118480.0,118470.0,0.66686096]
[1753253258263,0.16185786,118480.0,118470.0,0.66886096]
[1753253259362,0.16185843,118480.0,118470.0,0.66886096]
[1753253260241,0.33066386,118480.0,118470.0,0.66042051]
[1753253260441,0.30534386,118480.0,118470.0,0.30353911]
[1753253260954,0.30534386,118480.0,118470.0,0.13472]
[1753253262023,0.30534386,118480.0,118470.0,0.30353911]
[1753253262252,0.30534386,118480.0,118470.0,0.13472]
[1753253262440,0.3137741,118480.0,118470.0,0.13472]
[1753253262923,0.3137741,118480.0,118470.0,0.31198006]
[1753253263118,0.3137741,118480.0,118470.0,0.32042094]
[1753253263346,0.3137741,118480.0,118470.0,0.32886175]
[1753253264008,0.30533393,118480.0,118470.0,0.32042094]
[1753253265049,0.36533393,118480.0,118470.0,0.32042094]
[1753253265688,0.36533393,118480.0,118470.0,0.32886175]
[1753253266715,0.36533393,118480.0,118470.0,0.33730249]
[1753253267604,0.36533393,118480.0,118470.0,0.34574316]
[1753253267818,0.36533393,118480.0,118470.0,0.32886175]
[1753253268029,0.36533393,118480.0,118470.0,0.32042094]
[1753253268252,0.36533393,118480.0,118470.0,0.31198006]
[1753253270640,0.36533393,118480.0,118470.0,0.32042094]
[1753253271010,0.36533393,118480.0,118470.0,0.31198006]
[1753253271220,0.36533393,118480.0,118470.0,0.14316095]
[1753253271414,0.35689369,118480.0,118470.0,0.14316095]
[1753253271578,0.35689369,118480.0,118470.0,0.13472]
[1753253273024,0.64190869,118480.0,118470.0,0.004]
[1753253273231,0.64190869,118480.0,118470.0,0.13472]
[1753253273801,0.64090869,118480.0,118470.0,0.13272]
[1753253274150,0.35589369,118480.0,118470.0,0.13272]
[1753253274553,0.35489369,118480.0,118470.0,0.13072]
[1753253274760,0.35589369,118480.0,118470.0,0.13172]
[1753253275347,0.35589369,118480.0,118470.0,0.13272]
[1753253280881,0.18708883,118480.0,118470.0,0.30153911]
[1753253281084,0.16758883,118480.0,118470.0,0.61385611]
[1753253281351,0.1454773,118480.0,118470.0,0.64979611]
[1753253281540,0.061,118480.0,118470.0,0.98979611]
[1753253283347,0.001,118480.0,118470.0,0.98979611]
[1753253295991,0.001,118480.0,118470.0,0.95709611]
[1753253296203,0.001,118480.0,118470.0,0.95385611]
[1753253296633,0.001,118480.0,118470.0,0.95709611]
[1753253297065,0.001,118480.0,118470.0,0.67208111]
[1753253297295,0.0146796,118480.0,118470.0,0.95373611]
[1753253297517,0.12409671,118480.0,118470.0,0.82115611]
[1753253297724,0.12409671,118480.0,118470.0,0.95175611]
[1753253297948,0.13949671,118480.0,118470.0,0.95175611]
[1753253298154,0.1310569,118480.0,118470.0,0.95175611]
[1753253298595,0.1072173,118480.0,118470.0,0.95373611]
[1753253298826,0.0876073,118480.0,118470.0,0.95373611]
[1753253299616,0.09604697,118480.0,118470.0,0.95373611]
[1753253299852,0.0876073,118480.0,118470.0,0.95373611]
[1753253301197,0.0960469,118480.0,118470.0,0.95373611]
[1753253301768,0.1113469,118480.0,118470.0,0.95373611]
[1753253301964,0.1060173,118480.0,118470.0,0.95373611]
[1753253302570,0.11445697,118480.0,118470.0,0.95373611]
[1753253303171,0.1060173,118480.0,118470.0,0.95373611]
[1753253303866,0.1060173,118480.0,118470.0,0.66872111]
[1753253304072,0.1144569,118480.0,118470.0,0.95373611]
[1753253305270,0.12289657,118480.0,118470.0,0.95373611]
[1753253306132,0.13133645,118480.0,118470.0,0.95369611]
[1753253306336,0.13839657,118480.0,118470.0,0.95369611]
[1753253306542,0.14683645,118480.0,118470.0,0.95369611]
[1753253306961,0.15527655,118480.0,118470.0,0.66670111]
[1753253307733,0.15527655,118480.0,118470.0,0.53614111]
[1753253307935,0.16371672,118480.0,118470.0,0.66670111]
[1753253308309,0.15527655,118480.0,118470.0,0.66670111]
[1753253309067,0.33252158,118480.0,118470.0,0.51081911]
[1753253309241,0.37564267,118480.0,118470.0,0.64982006]
[1753253309469,0.36720257,118480.0,118470.0,0.47256]
[1753253311211,0.36720257,118480.0,118470.0,0.64137911]
[1753253311414,0.36720257,118480.0,118470.0,0.47256]
[1753253311628,0.36720257,118480.0,118470.0,0.64137911]
[1753253311846,0.36720257,118480.0,118470.0,0.64981999]
[1753253312049,0.36720257,118480.0,118470.0,0.6582608]
[1753253312992,0.36720257,118480.0,118470.0,0.66670154]
[1753253313252,0.36720257,118480.0,118470.0,0.67514221]
[1753253316957,0.36720257,118480.0,118470.0,0.6582608]
[1753253317371,0.36720257,118480.0,118470.0,0.66670154]
[1753253321672,0.36720257,118480.0,118470.0,0.67514206]
[1753253323557,0.36720257,118480.0,118470.0,0.66670154]
[1753253323766,0.36720228,118480.0,118470.0,0.68358273]
[1753253323958,0.37564252,118480.0,118470.0,0.67514185]
[1753253324388,0.37564252,118480.0,118470.0,0.66670133]
[1753253324610,0.36720257,118480.0,118470.0,0.64981992]
[1753253324838,0.36720257,118480.0,118470.0,0.64982006]
[1753253325552,0.36720257,118480.0,118470.0,0.65826094]
[1753253327172,0.35032216,118480.0,118470.0,0.47256]
[1753253327735,0.35032216,118480.0,118470.0,0.13256]
[1753253327933,0.35032216,118480.0,118470.0,0.13248]
[1753253335997,0.35032216,118480.0,118470.0,0.30129911]
[1753253336209,0.35032216,118480.0,118470.0,0.13248]
[1753253339425,0.67085018,118480.0,118470.0,0.13248]
[1753253340570,0.35032216,118480.0,118470.0,0.13248]
[1753253342243,0.35032216,118480.0,118470.0,0.30129911]
[1753253342710,0.35032216,118480.0,118470.0,0.13248]
[1753253344669,0.67085018,118480.0,118470.0,0.13248]
[1753253349715,0.35032216,118480.0,118470.0,0.30974006]
[1753253349903,0.35032216,118480.0,118470.0,0.63870896]
[1753253350322,0.35032216,118480.0,118470.0,0.63026808]
[1753253350626,0.35032216,118480.0,118470.0,0.30974006]
[1753253350830,0.35032216,118480.0,118470.0,0.45300802]
[1753253351072,0.35032216,118480.0,118470.0,0.13248]
[1753253354955,0.29032216,118480.0,118470.0,0.13248]
[1753253356435,0.29032216,118480.0,118470.0,0.45300802]
[1753253356643,0.25952216,118480.0,118470.0,0.30329911]
[1753253356854,0.25952216,118480.0,118470.0,0.62382713]
[1753253357085,0.25952216,118480.0,118470.0,0.63226808]
[1753253357393,0.25952216,118480.0,118470.0,0.13448]
[1753253358321,0.25952216,118480.0,118470.0,0.45500802]
[1753253359248,0.25952216,118480.0,118470.0,0.62382713]
[1753253360103,0.27640214,118480.0,118470.0,0.64070889]
[1753253360308,0.2679624,118480.0,118470.0,0.004]
[1753253360516,0.2679624,118480.0,118470.0,0.13432]
[1753253360736,0.2830624,118480.0,118470.0,0.45484802]
[1753253360954,0.2830624,118480.0,118470.0,0.63210808]
[1753253362276,0.2679624,118480.0,118470.0,0.63210808]
[1753253362672,0.2679624,118480.0,118470.0,0.64054896]
[1753253364973,0.2679624,118480.0,118470.0,0.32002094]
[1753253365174,0.2679624,118480.0,118470.0,0.32846175]
[1753253365318,0.2679624,118480.0,118470.0,0.64898977]
[1753253367493,0.2833624,118480.0,118470.0,0.13228]
[1753253368450,0.2833624,118480.0,118470.0,0.63006794]
[1753253368632,0.2679624,118480.0,118470.0,0.63217794]
[1753253369290,0.2679624,118480.0,118470.0,0.50189794]
[1753253369491,0.2679624,118480.0,118470.0,0.63217794]
[1753253369985,0.2679624,118480.0,118470.0,0.63217808]
[1753253370870,0.2679624,118480.0,118470.0,0.64061896]
[1753253372890,0.2679624,118480.0,118470.0,0.64905977]
[1753253373411,0.2648524,118480.0,118470.0,0.64905977]
[1753253374041,0.3248524,118480.0,118470.0,0.64905977]
[1753253375062,0.15391732,118480.0,118470.0,0.64905977]
[1753253375267,0.16235671,118480.0,118470.0,1.02205891]
[1753253375486,0.10235671,118480.0,118470.0,1.02205891]
[1753253375709,0.10235671,118480.0,118470.0,0.70153089]
[1753253376165,0.10235671,118480.0,118470.0,0.38100287]
[1753253376370,0.10235671,118480.0,118470.0,0.70153089]
[1753253376993,0.11923676,118480.0,118470.0,0.38100287]
[1753253377207,0.11923676,118480.0,118470.0,0.70153089]
[1753253377421,0.29648179,118480.0,118470.0,0.70153089]
[1753253377643,0.29648179,118480.0,118470.0,0.69309044]
[1753253377866,0.29648243,118480.0,118470.0,0.7015306]
[1753253378229,0.29648243,118480.0,118470.0,0.70153017]
[1753253378992,0.29648243,118480.0,118470.0,0.66913017]
[1753253379414,0.29648243,118480.0,118470.0,0.66068972]
[1753253379836,0.29648243,118480.0,118470.0,0.3401617]
[1753253380039,0.29648243,118480.0,118470.0,0.66068972]
[1753253380248,0.28804262,118480.0,118470.0,0.64061861]
[1753253380462,0.27960267,118480.0,118470.0,0.64061861]
[1753253381567,0.27960267,118480.0,118470.0,0.64905913]
[1753253381920,0.27960267,118480.0,118470.0,0.64061861]
[1753253383898,0.27960267,118480.0,118470.0,0.32009059]
[1753253384152,0.27960267,118480.0,118470.0,0.64061861]
[1753253384561,0.27960267,118480.0,118470.0,0.64380861]
[1753253386569,0.10235757,118480.0,118470.0,0.64380861]
[1753253386764,0.27116243,118480.0,118470.0,0.64380861]
[1753253386989,0.27116243,118480.0,118470.0,0.64905913]
[1753253387905,0.27116243,118480.0,118470.0,0.32009059]
[1753253388108,0.27116243,118480.0,118470.0,0.64061861]
[1753253388286,0.27116243,118480.0,118470.0,0.64380861]
[1753253388985,0.27116243,118480.0,118470.0,0.64061861]
[1753253390099,0.27116243,118480.0,118470.0,0.64905913]
[1753253390526,0.27960267,118480.0,118470.0,0.64061861]
[1753253391529,0.27960267,118480.0,118470.0,0.32009059]
[1753253391672,0.27960267,118480.0,118470.0,0.63217794]